[Event "The Kvibergspelen 2023"]
[Site "Kviberg Park Hotel & Conference, Krutvagen 2, Gothenburg, Sweden"]
[Date "2023.09.16"]
[Round "5.19"]
[White "Schriever-Abeln, Marius"]
[Black "Hansen, Sune Berg"]
[Result "0-1"]
[TimeControl "15 minutes + 5 seconds per move from move one (Round 1 - 4) / 90 minutes + 30 seconds per move from move one (Round 5 - 8)"]
[BlackTitle "GM"]
[WhiteFideId "1752650"]
[BlackFideId "1400266"]
[WhiteElo "1936"]
[BlackElo "2512"]

1. d4 {[%clk 01:30:58]} {[%emt 00:00:02]} Nf6 {[%clk 01:30:30]} {[%emt
00:00:31]} 2. c4 {[%clk 01:31:22]} {[%emt 00:00:05]} g6 {[%clk 01:30:50]}
{[%emt 00:00:11]} 3. Nc3 {[%clk 01:31:45]} {[%emt 00:00:07]} Bg7 {[%clk
01:31:14]} {[%emt 00:00:05]} 4. e4 {[%clk 01:32:09]} {[%emt 00:00:06]} d6
{[%clk 01:31:39]} {[%emt 00:00:05]} 5. f3 {[%clk 01:32:26]} {[%emt 00:00:13]}
c6 {[%clk 01:32:01]} {[%emt 00:00:08]} 6. Be3 {[%clk 01:32:00]} {[%emt
00:00:56]} a6 {[%clk 01:32:24]} {[%emt 00:00:07]} 7. Bd3 {[%clk 01:27:29]}
{[%emt 00:05:02]} b5 {[%clk 01:29:50]} {[%emt 00:03:04]} 8. Qd2 {[%clk
01:23:13]} {[%emt 00:04:45]} O-O {[%clk 01:25:39]} {[%emt 00:04:41]} 9. Nge2
{[%clk 01:21:56]} {[%emt 00:01:48]} Nbd7 {[%clk 01:20:29]} {[%emt 00:05:40]} 10.
O-O {[%clk 01:11:21]} {[%emt 00:11:04]} e5 {[%clk 01:09:08]} {[%emt 00:11:52]}
11. d5 {[%clk 01:01:00]} {[%emt 00:10:51]} bxc4 {[%clk 01:07:34]} {[%emt
00:02:03]} 12. Bxc4 {[%clk 00:59:45]} {[%emt 00:01:45]} Nb6 {[%clk 01:06:37]}
{[%emt 00:01:27]} 13. Bb3 {[%clk 00:51:39]} {[%emt 00:08:36]} cxd5 {[%clk
00:57:47]} {[%emt 00:09:21]} 14. Nxd5 {[%clk 00:41:32]} {[%emt 00:10:38]} Nbxd5
{[%clk 00:53:39]} {[%emt 00:04:36]} 15. exd5 {[%clk 00:36:41]} {[%emt
00:05:21]} Bd7 {[%emt 00:09:35]} 16. Rac1 {[%emt 00:04:32]} a5 {[%clk
00:40:50]} {[%emt 00:04:15]} 17. Nc3 {[%clk 00:26:36]} {[%emt 00:06:32]} a4
{[%clk 00:39:54]} {[%emt 00:01:27]} 18. Bc4 {[%clk 00:25:32]} {[%emt 00:01:34]}
Rb8 {[%clk 00:37:37]} {[%emt 00:02:47]} 19. Ne2 {[%clk 00:18:14]} {[%emt
00:07:48]} e4 {[%clk 00:31:14]} {[%emt 00:06:53]} 20. f4 {[%clk 00:15:09]}
{[%emt 00:03:34]} Ng4 {[%clk 00:30:03]} {[%emt 00:01:41]} 21. Bd4 {[%clk
00:13:56]} {[%emt 00:01:43]} Bxd4+ {[%clk 00:25:21]} {[%emt 00:05:12]} 22. Qxd4
{[%clk 00:13:17]} {[%emt 00:01:09]} Qh4 {[%clk 00:22:59]} {[%emt 00:02:52]} 23.
h3 {[%clk 00:12:25]} Nh6 {[%clk 00:23:17]} {[%emt 00:01:34]} 24. b3 {[%clk
00:11:08]} axb3 {[%clk 00:20:55]} {[%emt 00:04:39]} 25. axb3 {[%clk 00:10:35]}
Nf5 {[%clk 00:18:39]} {[%emt 00:03:49]} 26. Qf2 {[%clk 00:09:30]} Qxf2+ {[%clk
00:15:47]} {[%emt 00:04:57]} 27. Kxf2 {[%clk 00:08:41]} h5 {[%clk 00:16:04]}
{[%emt 00:01:32]} 28. Rfd1 {[%clk 00:05:33]} Bb5 {[%clk 00:13:45]} {[%emt
00:06:27]} 29. Rc2 {[%clk 00:04:13]} Bxc4 {[%clk 00:11:35]} {[%emt 00:04:30]}
30. bxc4 {[%clk 00:04:32]} Rb3 {[%clk 00:11:58]} {[%emt 00:00:17]} 31. Nc3
{[%clk 00:01:28]} h4 {[%clk 00:06:20]} {[%emt 00:09:44]} 32. Re1 {[%clk
00:00:38]} e3+ {[%emt 00:01:36]} 33. Kf1 {[%clk 00:00:36]} Re8 {[%clk
00:06:45]} {[%emt 00:00:50]} 34. Nd1 {[%clk 00:00:38]} e2+ {[%clk 00:05:14]}
{[%emt 00:02:30]} 35. Rcxe2 {[%clk 00:00:40]} Ng3+ {[%clk 00:05:15]} {[%emt
00:00:56]} 36. Kf2 {[%clk 00:01:03]} Nxe2 {[%clk 00:05:37]} {[%emt 00:00:15]}
37. Rxe2 {[%clk 00:01:25]} Rc8 {[%clk 00:04:48]} {[%emt 00:01:27]} 38. Re4
{[%clk 00:00:52]} Ra8 {[%clk 00:03:32]} {[%emt 00:02:50]} 39. Ne3 {[%clk
00:00:41]} Ra2+ {[%clk 00:03:18]} {[%emt 00:01:24]} 40. Kf3 {[%clk 00:00:54]}
Raa3 {[%clk 00:02:33]} {[%emt 00:01:32]} 41. Re7 {[%clk 00:00:41]} {[%emt
00:01:21]} Kf8 {[%clk 00:02:39]} {[%emt 00:00:45]} 42. Re4 {[%clk 00:00:59]} f5
{[%clk 00:02:08]} {[%emt 00:01:14]} 43. Re6 {[%clk 00:01:11]} Kf7 {[%clk
00:02:33]} {[%emt 00:00:23]} 44. Kf2 {[%clk 00:00:46]} Rb2+ {[%clk 00:02:52]}
{[%emt 00:01:06]} 45. Kf3 {[%clk 00:00:46]} Raa2 {[%clk 00:03:12]} {[%emt
00:00:40]} 46. Nd1 {[%clk 00:00:51]} Rxg2 {[%clk 00:03:26]} {[%emt 00:00:40]}
47. Rxd6 {[%clk 00:01:00]} Rg3# {[%clk 00:03:46]} {[%emt 00:00:29]} 0-1

[Event "The Kvibergspelen 2023"]
[Site "Kviberg Park Hotel & Conference, Krutvagen 2, Gothenburg, Sweden"]
[Date "2023.09.16"]
[Round "5.20"]
[White "Frank, Anton"]
[Black "Frisk, Ellinor"]
[Result "0-1"]
[TimeControl "15 minutes + 5 seconds per move from move one (Round 1 - 4) / 90 minutes + 30 seconds per move from move one (Round 5 - 8)"]
[BlackTitle "WIM"]
[WhiteFideId "1752383"]
[BlackFideId "1708481"]
[WhiteElo "2018"]
[BlackElo "2166"]

1. e4 {[%clk 01:30:58]} c5 {[%clk 01:26:20]} {[%emt 00:04:41]} 2. Nf3 {[%clk
01:31:16]} {[%emt 00:00:11]} e6 {[%clk 01:26:36]} {[%emt 00:00:17]} 3. d4
{[%clk 01:31:32]} {[%emt 00:00:12]} cxd4 {[%clk 01:27:04]} {[%emt 00:00:03]} 4.
Nxd4 {[%clk 01:31:51]} {[%emt 00:00:10]} Nf6 {[%clk 01:27:24]} {[%emt
00:00:10]} 5. Nc3 {[%clk 01:32:01]} {[%emt 00:00:19]} Nc6 {[%clk 01:27:44]}
{[%emt 00:00:10]} 6. Ndb5 {[%clk 01:32:11]} {[%emt 00:00:21]} Bc5 {[%clk
01:27:50]} {[%emt 00:00:25]} 7. Nd6+ {[%clk 01:21:24]} {[%emt 00:11:16]} Ke7
{[%clk 01:27:16]} {[%emt 00:01:04]} 8. Bf4 {[%clk 01:21:39]} {[%emt 00:00:14]}
e5 {[%clk 01:27:37]} {[%emt 00:00:11]} 9. Nf5+ {[%clk 01:22:02]} {[%emt
00:00:06]} Kf8 {[%clk 01:28:03]} {[%emt 00:00:04]} 10. Bg5 {[%clk 01:22:23]}
{[%emt 00:00:09]} d6 {[%clk 01:27:20]} {[%emt 00:01:14]} 11. Bd3 {[%clk
01:05:53]} {[%emt 00:16:59]} Bxf5 {[%clk 01:09:22]} {[%emt 00:18:28]} 12. Bxf6
{[%clk 01:00:49]} {[%emt 00:05:33]} Qxf6 {[%clk 00:54:06]} {[%emt 00:15:47]} 13.
exf5 {[%clk 01:01:10]} {[%emt 00:00:08]} Bb4 {[%clk 00:54:08]} {[%emt
00:00:29]} 14. Be4 {[%clk 00:54:30]} {[%emt 00:07:09]} g6 {[%clk 00:50:12]}
{[%emt 00:04:26]} 15. fxg6 {[%clk 00:48:20]} {[%emt 00:06:41]} hxg6 {[%clk
00:50:17]} {[%emt 00:00:25]} 16. Qd3 {[%clk 00:47:09]} {[%emt 00:01:40]} Rd8
{[%clk 00:39:20]} {[%emt 00:11:28]} 17. O-O-O {[%clk 00:38:36]} {[%emt
00:09:02]} Bxc3 {[%clk 00:38:38]} {[%emt 00:01:13]} 18. Qxc3 {[%clk 00:38:20]}
{[%emt 00:00:46]} Qf4+ {[%clk 00:29:13]} {[%emt 00:09:54]} 19. Qe3 {[%clk
00:38:29]} {[%emt 00:00:21]} Qxe3+ {[%clk 00:29:14]} {[%emt 00:00:31]} 20. fxe3
{[%clk 00:38:51]} {[%emt 00:00:07]} f5 {[%clk 00:29:33]} {[%emt 00:00:11]} 21.
Bd5 {[%clk 00:36:53]} {[%emt 00:02:27]} Ke7 {[%clk 00:29:29]} {[%emt 00:00:35]}
22. h3 {[%clk 00:32:40]} {[%emt 00:04:42]} Rd7 {[%clk 00:26:48]} {[%emt
00:03:11]} 23. Rhf1 {[%clk 00:26:06]} {[%emt 00:07:04]} Kf6 {[%clk 00:24:01]}
{[%emt 00:03:18]} 24. Rf3 {[%clk 00:21:21]} {[%emt 00:05:14]} Ne7 {[%clk
00:22:38]} {[%emt 00:01:53]} 25. Bb3 {[%clk 00:15:23]} {[%emt 00:06:28]} e4
{[%clk 00:21:12]} {[%emt 00:01:57]} 26. Rf2 {[%clk 00:15:22]} {[%emt 00:00:31]}
Ke5 {[%clk 00:17:36]} {[%emt 00:04:07]} 27. Rfd2 {[%clk 00:12:45]} {[%emt
00:03:06]} Rhd8 {[%clk 00:17:08]} {[%emt 00:00:58]} 28. h4 {[%clk 00:07:23]}
{[%emt 00:05:52]} d5 {[%clk 00:13:05]} {[%emt 00:04:34]} 29. g3 {[%clk
00:06:47]} {[%emt 00:01:05]} d4 {[%clk 00:09:15]} {[%emt 00:04:20]} 30. exd4+
{[%clk 00:03:24]} {[%emt 00:03:53]} Rxd4 {[%clk 00:09:40]} {[%emt 00:00:06]} 31.
Rxd4 {[%clk 00:02:40]} {[%emt 00:01:13]} Rxd4 {[%clk 00:10:09]} {[%emt
00:00:02]} 32. Rxd4 {[%clk 00:02:53]} {[%emt 00:00:17]} Kxd4 {[%clk 00:10:38]}
{[%emt 00:00:01]} 33. Kd2 {[%clk 00:03:13]} {[%emt 00:00:09]} Nc6 {[%clk
00:08:35]} {[%emt 00:02:34]} 34. Bf7 {[%clk 00:02:47]} {[%emt 00:00:56]} e3+
{[%clk 00:07:48]} {[%emt 00:01:17]} 35. Ke2 {[%clk 00:03:09]} {[%emt 00:00:07]}
Ne5 {[%clk 00:08:03]} {[%emt 00:00:16]} 36. Be8 {[%clk 00:03:26]} {[%emt
00:00:12]} Ke4 {[%clk 00:07:37]} {[%emt 00:00:57]} 37. h5 {[%clk 00:03:05]}
gxh5 38. Bxh5 {[%clk 00:03:29]} b6 {[%clk 00:07:04]} {[%emt 00:01:16]} 39. b3
{[%clk 00:03:18]} {[%emt 00:00:39]} f4 {[%clk 00:06:42]} {[%emt 00:00:53]} 40.
gxf4 {[%clk 00:03:41]} {[%emt 00:00:06]} Kxf4 {[%clk 00:07:08]} {[%emt
00:00:05]} 41. a4 {[%clk 00:02:31]} {[%emt 00:01:40]} Ke4 {[%clk 00:07:07]}
{[%emt 00:00:31]} 42. Be8 {[%clk 00:01:09]} {[%emt 00:01:51]} Kd4 {[%clk
00:07:00]} {[%emt 00:00:36]} 43. Bb5 {[%emt 00:00:47]} Ng6 {[%clk 00:04:03]}
{[%emt 00:03:26]} 44. Kf3 {[%clk 00:00:38]} {[%emt 00:00:46]} Nh4+ {[%clk
00:03:17]} {[%emt 00:01:16]} 45. Ke2 {[%clk 00:00:56]} {[%emt 00:00:12]} Nf5
{[%clk 00:03:22]} {[%emt 00:00:25]} 46. Bd3 {[%clk 00:00:40]} {[%emt 00:00:46]}
Nd6 {[%clk 00:03:41]} {[%emt 00:00:10]} 47. Bg6 {[%clk 00:00:38]} {[%emt
00:00:32]} a5 {[%clk 00:03:32]} {[%emt 00:00:40]} 48. Bd3 {[%clk 00:00:57]}
{[%emt 00:00:10]} Nb7 {[%clk 00:03:38]} {[%emt 00:00:24]} 49. Bc4 {[%clk
00:00:35]} {[%emt 00:00:53]} Nc5 {[%clk 00:03:58]} {[%emt 00:00:10]} 50. Kd1
{[%emt 00:01:36]} Nxa4 {[%clk 00:03:19]} {[%emt 00:00:03]} 51. Be2 {[%clk
00:00:42]} {[%emt 00:00:23]} Nc3+ {[%clk 00:03:25]} {[%emt 00:00:24]} 52. Ke1
{[%clk 00:01:08]} {[%emt 00:00:04]} Nxe2 {[%clk 00:03:37]} {[%emt 00:00:18]} 53.
Kxe2 {[%clk 00:01:33]} {[%emt 00:00:05]} Kc3 {[%clk 00:04:00]} {[%emt
00:00:06]} 0-1

[Event "The Kvibergspelen 2023"]
[Site "Kviberg Park Hotel & Conference, Krutvagen 2, Gothenburg, Sweden"]
[Date "2023.09.16"]
[Round "6.1"]
[White "Golubka, Petro"]
[Black "Holm, Kristian Stuvik"]
[Result "1-0"]
[TimeControl "15 minutes + 5 seconds per move from move one (Round 1 - 4) / 90 minutes + 30 seconds per move from move one (Round 5 - 8)"]
[WhiteTitle "GM"]
[BlackTitle "IM"]
[WhiteFideId "14114224"]
[BlackFideId "1508083"]
[WhiteElo "2439"]
[BlackElo "2488"]

1. e4 {[%clk 01:19:54]} {[%emt 00:10:59]} c5 {[%clk 01:30:58]} {[%emt
00:00:09]} 2. Nf3 {[%clk 01:20:07]} {[%emt 00:00:16]} Nc6 {[%clk 01:31:22]}
{[%emt 00:00:07]} 3. d4 {[%clk 01:20:33]} {[%emt 00:00:04]} cxd4 {[%clk
01:31:46]} {[%emt 00:00:05]} 4. Nxd4 {[%clk 01:21:01]} {[%emt 00:00:02]} g6
{[%clk 01:31:49]} {[%emt 00:00:27]} 5. c4 {[%clk 01:21:28]} {[%emt 00:00:04]}
Bg7 {[%clk 01:32:13]} {[%emt 00:00:06]} 6. Be3 {[%clk 01:21:56]} {[%emt
00:00:02]} Qb6 {[%clk 01:32:28]} {[%emt 00:00:15]} 7. Nb3 {[%clk 01:19:29]}
{[%emt 00:02:57]} Qd8 {[%clk 01:32:45]} {[%emt 00:00:12]} 8. Qd2 {[%clk
01:18:38]} {[%emt 00:01:21]} Nf6 {[%clk 01:33:08]} {[%emt 00:00:08]} 9. f3
{[%clk 01:18:03]} {[%emt 00:01:04]} d6 {[%clk 01:33:28]} {[%emt 00:00:10]} 10.
Nc3 {[%clk 01:18:20]} {[%emt 00:00:14]} Be6 {[%clk 01:30:47]} {[%emt 00:03:11]}
11. Be2 {[%clk 01:16:19]} {[%emt 00:02:30]} O-O {[%clk 01:26:08]} {[%emt
00:05:09]} 12. O-O-O {[%clk 01:08:09]} {[%emt 00:08:40]} Na5 {[%clk 00:54:19]}
{[%emt 00:32:19]} 13. Nxa5 {[%clk 01:07:23]} {[%emt 00:01:16]} Qxa5 {[%clk
00:54:47]} {[%emt 00:00:02]} 14. Kb1 {[%clk 01:07:33]} {[%emt 00:00:20]} Rfc8
{[%clk 00:54:58]} {[%emt 00:00:20]} 15. Nd5 {[%clk 01:05:14]} {[%emt 00:02:49]}
Qxd2 {[%clk 00:54:47]} {[%emt 00:00:39]} 16. Rxd2 {[%clk 01:05:06]} {[%emt
00:00:39]} Kf8 {[%clk 00:45:41]} {[%emt 00:09:36]} 17. g4 {[%clk 01:00:22]}
{[%emt 00:05:14]} Nxd5 {[%clk 00:37:23]} {[%emt 00:08:49]} 18. exd5 {[%clk
00:50:03]} {[%emt 00:10:49]} Bd7 {[%clk 00:37:51]} 19. h4 {[%clk 00:50:12]}
{[%emt 00:00:21]} a6 {[%clk 00:35:03]} {[%emt 00:03:18]} 20. h5 {[%clk
00:44:00]} {[%emt 00:06:42]} b5 {[%clk 00:35:07]} {[%emt 00:00:27]} 21. h6
{[%clk 00:43:55]} {[%emt 00:00:34]} Bf6 {[%clk 00:32:50]} {[%emt 00:02:47]} 22.
Rc1 {[%clk 00:43:55]} {[%emt 00:00:29]} Ke8 {[%clk 00:31:06]} {[%emt 00:02:15]}
23. Rdc2 {[%clk 00:32:49]} {[%emt 00:11:36]} bxc4 {[%clk 00:28:13]} {[%emt
00:03:23]} 24. Bxc4 {[%clk 00:32:04]} {[%emt 00:01:15]} e6 {[%clk 00:26:34]}
{[%emt 00:02:09]} 25. b3 {[%clk 00:31:31]} {[%emt 00:01:04]} Rcb8 {[%clk
00:24:06]} {[%emt 00:02:58]} 26. g5 {[%clk 00:25:01]} {[%emt 00:07:00]} Be7
{[%clk 00:24:03]} {[%emt 00:00:32]} 27. a3 {[%clk 00:24:37]} {[%emt 00:00:56]}
exd5 {[%clk 00:09:46]} {[%emt 00:14:46]} 28. Bxd5 {[%clk 00:24:57]} {[%emt
00:00:08]} Bf5 {[%clk 00:10:16]} {[%emt 00:00:01]} 29. Kb2 {[%clk 00:22:37]}
{[%emt 00:02:51]} Bxc2 {[%clk 00:10:40]} {[%emt 00:00:06]} 30. Bc6+ {[%clk
00:22:47]} {[%emt 00:00:18]} Kd8 {[%clk 00:09:51]} {[%emt 00:01:20]} 31. Rxc2
{[%clk 00:23:07]} {[%emt 00:00:10]} a5 {[%clk 00:10:09]} {[%emt 00:00:12]} 32.
f4 {[%clk 00:20:19]} {[%emt 00:03:18]} Ra6 {[%clk 00:09:27]} {[%emt 00:01:12]}
33. Bd5 {[%clk 00:20:39]} {[%emt 00:00:10]} Ke8 {[%clk 00:07:01]} {[%emt
00:02:56]} 34. Rc7 {[%clk 00:17:08]} {[%emt 00:04:01]} a4 {[%clk 00:04:17]}
{[%emt 00:03:14]} 35. b4 {[%clk 00:17:15]} {[%emt 00:00:24]} Ra5 {[%clk
00:04:26]} {[%emt 00:00:21]} 36. Bc6+ {[%clk 00:17:21]} {[%emt 00:00:21]} Kf8
{[%clk 00:04:45]} {[%emt 00:00:13]} 37. Kc2 {[%clk 00:12:14]} {[%emt 00:05:37]}
Bd8 {[%clk 00:03:41]} {[%emt 00:01:34]} 38. bxa5 {[%clk 00:12:08]} {[%emt
00:00:37]} Bxc7 {[%clk 00:04:05]} {[%emt 00:00:06]} 39. a6 {[%clk 00:12:35]}
{[%emt 00:00:03]} Bb6 {[%clk 00:04:02]} {[%emt 00:00:33]} 40. Bxb6 {[%clk
00:12:45]} {[%emt 00:00:21]} Rc8 {[%clk 00:03:03]} {[%emt 00:01:28]} 41. Kd3
{[%clk 00:12:44]} {[%emt 00:00:30]} Rxc6 {[%clk 00:03:31]} {[%emt 00:00:02]} 42.
a7 {[%clk 00:13:02]} {[%emt 00:00:11]} Rc8 {[%clk 00:03:59]} {[%emt 00:00:03]}
43. Bc7 {[%clk 00:13:29]} {[%emt 00:00:03]} 1-0

[Event "The Kvibergspelen 2023"]
[Site "Kviberg Park Hotel & Conference, Krutvagen 2, Gothenburg, Sweden"]
[Date "2023.09.16"]
[Round "6.2"]
[White "Ramsdal, Jens Albert"]
[Black "Seo, Jung Min"]
[Result "0-1"]
[TimeControl "15 minutes + 5 seconds per move from move one (Round 1 - 4) / 90 minutes + 30 seconds per move from move one (Round 5 - 8)"]
[WhiteTitle "FM"]
[BlackTitle "IM"]
[WhiteFideId "1429221"]
[BlackFideId "1734687"]
[WhiteElo "2391"]
[BlackElo "2462"]

1. d4 {[%clk 01:27:40]} {[%emt 00:03:20]} Nf6 {[%clk 01:30:58]} {[%emt
00:00:02]} 2. c4 {[%clk 01:28:02]} {[%emt 00:00:09]} e6 {[%clk 01:31:28]} 3.
Nf3 {[%clk 01:27:21]} {[%emt 00:01:10]} d5 {[%clk 01:30:59]} {[%emt 00:01:00]}
4. Nc3 {[%clk 01:27:43]} {[%emt 00:00:08]} c6 {[%clk 01:31:28]} {[%emt
00:00:01]} 5. e3 {[%clk 01:26:01]} {[%emt 00:02:12]} Nbd7 {[%clk 01:31:49]}
{[%emt 00:00:09]} 6. b3 {[%clk 01:25:13]} {[%emt 00:01:17]} Bb4 {[%clk
01:26:26]} {[%emt 00:05:53]} 7. Bd2 {[%clk 01:25:31]} {[%emt 00:00:12]} O-O
{[%clk 01:25:07]} {[%emt 00:01:49]} 8. Bd3 {[%clk 01:22:45]} {[%emt 00:03:16]}
b6 {[%clk 01:21:27]} {[%emt 00:04:11]} 9. a3 {[%clk 01:16:48]} {[%emt
00:06:26]} Bd6 {[%clk 01:19:24]} {[%emt 00:02:34]} 10. O-O {[%clk 01:14:38]}
{[%emt 00:02:39]} Bb7 {[%clk 01:19:31]} {[%emt 00:00:23]} 11. Re1 {[%clk
01:06:48]} {[%emt 00:08:19]} c5 {[%clk 01:10:25]} {[%emt 00:09:37]} 12. cxd5
{[%clk 01:05:51]} {[%emt 00:01:27]} exd5 {[%clk 01:10:19]} {[%emt 00:00:36]} 13.
dxc5 {[%clk 01:00:53]} {[%emt 00:05:28]} Nxc5 {[%clk 01:07:44]} {[%emt
00:03:06]} 14. Bc2 {[%clk 01:00:51]} {[%emt 00:00:32]} Nce4 {[%clk 01:04:53]}
{[%emt 00:03:20]} 15. Nxe4 {[%clk 00:53:45]} {[%emt 00:07:37]} dxe4 {[%clk
01:05:17]} {[%emt 00:00:06]} 16. Nd4 {[%clk 00:54:00]} {[%emt 00:00:15]} Be5
{[%clk 01:04:07]} {[%emt 00:01:39]} 17. Bb4 {[%clk 00:40:58]} {[%emt 00:13:33]}
Bxd4 {[%clk 01:01:51]} {[%emt 00:02:46]} 18. exd4 {[%clk 00:38:03]} {[%emt
00:03:25]} Re8 {[%clk 01:02:16]} {[%emt 00:00:05]} 19. Re3 {[%clk 00:31:38]}
{[%emt 00:06:54]} Qd7 {[%clk 00:58:37]} {[%emt 00:04:10]} 20. Rg3 {[%clk
00:29:20]} {[%emt 00:02:47]} Rac8 {[%clk 00:51:56]} {[%emt 00:07:11]} 21. Bd2
{[%clk 00:24:11]} {[%emt 00:05:38]} Kh8 {[%clk 00:51:13]} {[%emt 00:01:14]} 22.
d5 {[%clk 00:13:59]} {[%emt 00:10:42]} Qxd5 {[%clk 00:46:47]} {[%emt 00:04:57]}
23. Bc3 {[%clk 00:13:08]} {[%emt 00:01:21]} e3 {[%clk 00:36:09]} {[%emt
00:11:08]} 24. Bxf6 {[%clk 00:11:42]} {[%emt 00:01:55]} exf2+ {[%clk 00:33:34]}
{[%emt 00:03:06]} 25. Kxf2 {[%clk 00:12:10]} {[%emt 00:00:01]} gxf6 {[%clk
00:33:56]} {[%emt 00:00:08]} 26. b4 {[%clk 00:07:28]} {[%emt 00:05:13]} Rxc2+
{[%clk 00:33:20]} {[%emt 00:01:04]} 0-1